[Event "US Masters 2022"]
[Site "Charlotte"]
[Date "2022.11.26"]
[Round "5.13"]
[White "Bodek, Michael"]
[Black "Gazik, Viktor"]
[Result "1/2-1/2"]
[ECO "B34"]
[WhiteElo "2427"]
[BlackElo "2564"]
[Annotator "TA"]
[PlyCount "131"]
[EventDate "2022.11.23"]
[EventType "swiss"]
[EventCountry "USA"]
[SourceTitle "playchess.com"]
[Source "ChessBase"]
[SourceQuality "1"]
[TimeControl "5400+30"]

{[%evp 17,131,-14,-6,2,-9,-43,6,0,23,33,37,32,37,0,36,42,61,0,10,0,0,0,0,-58,-39,-20,-27,-133,0,0,0,0,66,49,52,78,119,30,79,81,72,83,73,70,80,90,70,74,141,129,133,71,51,65,91,83,251,127,120,143,143,47,68,93,80,1,9,10,101,-115,-20,-14,664,662,685,666,676,634,590,456,456,441,440,407,420,354,581,571,604,518,958,753,666,634,497,0,0,0,0,0,0,0,0,0,0,0,0,0,0,0,0,0,0,0,0,0]} 1. e4 {[%emt 0:00:02]} c5 {[%emt 0:05:22]} 2. Nf3 {[%emt 0:00:08]} Nc6 {[%emt 0:00:09]} 3. Nc3 {[%emt 0:00:11]} g6 {[%emt 0:00:05]} 4. d4 {[%emt 0:01:10]} cxd4 {[%emt 0:01:45]} 5. Nxd4 {[%emt 0:00:04]} Bg7 {[%emt 0:00:05]} 6. Be3 {[%emt 0:00:04]} Nf6 {[%emt 0:00:06]} 7. Nxc6 {[%emt 0:02:04]} bxc6 {[%emt 0:00:26]} 8. e5 {[%emt 0:00:15]} Ng8 {[%emt 0:01:28]} 9. Bd4 {[%emt 0:02:28]} Qa5 {[%emt 0:13:58]} 10. f4 {[%emt 0:12:17] B34: Sicilian: Accelerated Dragon with 5 Nc3: sidelines.} Rb8 {[%emt 0:16:33]} 11. Bc4 {[%emt 0:21:55] [#]} Rb4 $146 {[%emt 0:30:35]} (11... c5 12. Bf2 $11) (11... Rxb2 $15 12. Qd2 Rb7) ({Predecessor:} 11... Rxb2 12. O-O c5 13. Bxf7+ Kxf7 14. e6+ dxe6 15. Be5 Bxe5 16. fxe5+ Kg7 17. Ne4 Nh6 {0-1 (26) Kislinsky,A (2479)-Vorobiov,E (2585) Pardubice 2017}) 12. Qd3 {[%emt 0:11:57]} Nh6 $1 {[%emt 0:00:54]} 13. O-O-O {[%emt 0:16:02]} Nf5 {[%emt 0:00:02] aiming for ...Nxd4.} 14. a3 {[%emt 0:01:00]} Rb8 {[%emt 0:00:35]} 15. Bf2 {[%emt 0:02:05]} (15. g4 Nxd4 16. Qxd4 d5 $17) 15... d5 {[%emt 0:02:12] Against g4} 16. Bb3 {[%emt 0:00:51]} h5 {[%emt 0:06:22]} 17. Na4 {[%emt 0:02:06]} (17. g3 $14) 17... Ba6 $11 {[%emt 0:06:53]} 18. Qf3 {[%emt 0:03:40]} e6 {[%emt 0:00:59]} 19. Be1 {[%emt 0:03:04]} Qb5 {[%emt 0:01:57]} 20. Bb4 {[%emt 0:00:38] Against c5} (20. Bf2 $11) 20... Bf8 $1 $15 {[%emt 0:00:22]} 21. Bxf8 {[%emt 0:01:36]} Kxf8 {[%emt 0:00:01]} 22. Qf2 {[%emt 0:02:36] Against c5} (22. Qc3 $1 $11 {remains equal.}) 22... d4 {[%emt 0:01:04]} (22... Kg7 $1 $17 23. Qxa7 Ra8) 23. Rxd4 $1 $11 {[%emt 0:00:59]} Nxd4 {[%emt 0:00:18]} 24. Qxd4 {[%emt 0:00:04]} Kg7 {[%emt 0:03:18]} (24... c5 $11 25. Qd6+ Kg7 26. Nxc5 Rhc8 27. Nxe6+ fxe6 28. Qe7+ Kh8 29. Qf6+ Kh7 30. Qe7+ Kh8 31. Qf6+ Kh7 32. Qe7+ Kh8) 25. Qxa7 {[%emt 0:01:16]} (25. Nc5 {feels hotter.} Qe2 26. f5 Rhd8 27. Qc3) 25... Ra8 {[%emt 0:01:05]} 26. Qe3 {[%emt 0:01:33]} Rhd8 {[%emt 0:02:37][%cal Oc6c5]} 27. Nc3 {[%emt 0:01:59]} (27. c4 $16 Qa5 28. Nc5) 27... Qa5 {[%emt 0:01:17]} (27... Qb7 $11) 28. Ne4 $16 {[%emt 0:00:47]} c5 {[%emt 0:00:26]} 29. Qxc5 {[%emt 0:00:46]} Bb7 {[%emt 0:00:25]} 30. Qxa5 {[%emt 0:01:22]} Rxa5 {[%emt 0:00:01]} 31. Nd6 {[%emt 0:02:04]} (31. Re1 Rd4 32. Nd6 Bxg2 $17) 31... Bxg2 {[%emt 0:00:02]} 32. Rg1 {[%emt 0:00:26]} Ba8 {[%emt 0:02:07]} (32... Bc6 $142) 33. c3 {[%emt 0:00:34] White is more active.} f6 {[%emt 0:00:58]} 34. Bc2 {[%emt 0:00:58] Prevents g5.} (34. Bxe6 $142 {And now Nf7 would win.} fxe5 35. Nc4) 34... g5 {[%emt 0:01:16]} 35. exf6+ {[%emt 0:01:11]} (35. fxg5 Rxe5 36. gxf6+ Kxf6 37. Rf1+ Ke7 $11) 35... Kxf6 {[%emt 0:00:20]} 36. fxg5+ {[%emt 0:00:43]} Ke7 $2 {[%emt 0:00:00] [#]} (36... Rxg5 $2 37. Rxg5 Rxd6 38. Rxh5 $18) (36... Kg7 $16 37. Rd1 Rd5) 37. Nc4 {[%emt 0:00:48]} (37. g6 $1 $18) 37... Rc5 {[%emt 0:00:01]} 38. Nb6 {[%emt 0:01:41] Hoping for g6.} Bf3 {[%emt 0:01:38]} 39. Rg3 {[%emt 0:00:46]} (39. h3 $16) 39... Re5 $14 {[%emt 0:01:11] ( -> ...Re1+)} 40. b4 {[%emt 0:01:42]} (40. Rxf3 Re1+ $17) 40... Bg4 {[%emt 0:00:50]} 41. Nc4 {[%emt 0:03:35]} (41. h3 $16 Bf5 42. Bxf5 exf5 43. Kc2) 41... Re1+ {[%emt 0:00:45]} ({Don't do} 41... Rxg5 42. h3 h4 43. Rxg4 $14) 42. Kb2 {[%emt 0:00:08]} Bf5 {[%emt 0:00:30]} (42... Re2 $11 43. Kb3 e5) 43. Ne3 $2 {[%emt 0:01:06] [#]} (43. Bxf5 $16 exf5 44. Rg2) 43... Bxc2 {[%emt 0:00:29]} (43... Rxe3 $1 $17 {[%mdl 512]} 44. Rxe3 Rd2) 44. Nxc2 $17 {[%emt 0:00:31][%mdl 4096] Endgame KRR-KRN} Rd2 $2 {[%emt 0:00:28][%mdl 8192] [#]} (44... Re2 $11 45. Kb3 h4) 45. g6 $1 $18 {[%emt 0:00:35]} Kf8 {[%emt 0:00:25][%cal Oe1e2]} 46. c4 {[%emt 0:00:41]} Ree2 {[%emt 0:00:38]} 47. Rc3 {[%emt 0:00:25]} Ke7 {[%emt 0:01:02]} 48. g7 {[%emt 0:00:28]} Rg2 {[%emt 0:00:00] Inhibits g8Q.} 49. c5 {[%emt 0:00:45][%cal Bc4c5,Bc5c6][%mdl 32]} Rxg7 {[%emt 0:00:00]} 50. h3 {[%emt 0:00:12]} h4 {[%emt 0:00:14] Strongly threatening ...Rg3.} 51. Rc4 {[%emt 0:00:20]} Rgg2 $2 {[%emt 0:00:48]} (51... Rd3 52. b5 (52. Rxh4 Rgg3 $14) 52... Rgg3) 52. b5 {[%emt 0:00:14]} Kd7 {[%emt 0:00:51]} 53. c6+ {[%emt 0:00:24]} Kc8 {[%emt 0:00:26]} (53... Kc7 $142 54. a4 Rd8) 54. a4 {[%emt 0:00:51]} e5 {[%emt 0:00:23]} 55. b6 {[%emt 0:00:25]} Rd4 {[%emt 0:00:30]} 56. Rc5 {[%emt 0:00:49]} (56. Rxd4 $18 {White wants to mate with Rd7.} exd4 57. Kc1 Rg1+ 58. Kd2) 56... Rb4+ $11 {[%emt 0:00:09] The position is equal.} (56... Rxa4 $2 57. Kb3 Ra6 58. b7+ Kc7 59. Nb4 Rg3+ 60. Kc2 Rg2+ 61. Kd3 $18) 57. Kc3 {[%emt 0:00:34] Really sharp!} Rxb6 {[%emt 0:00:01]} (57... Rxa4 $2 58. Nb4 Rg8 59. Nd5 $18) 58. Nb4 $1 {[%emt 0:00:44]} Rg1 {[%emt 0:01:34] White must now prevent ...Rc1+.} 59. Rxe5 {[%emt 0:00:43]} Rc1+ {[%emt 0:00:31]} 60. Kd2 {[%emt 0:00:16]} Rxb4 {[%emt 0:00:30]} 61. Kxc1 {[%emt 0:00:08]} Rxa4 {[%emt 0:00:01] KR-KR} 62. Rh5 {[%emt 0:00:15]} Kc7 {[%emt 0:00:08]} 63. Rh6 {[%emt 0:00:04]} Ra3 {[%emt 0:00:08]} 64. Rxh4 {[%emt 0:00:05] Kb2 is the strong threat.} Kxc6 {[%emt 0:00:03]} 65. Kd2 {[%emt 0:00:06]} Kd6 {[%emt 0:00:06]} 66. Ke2 {[%emt 0:00:36] Black escapes into a draw.   Weighted Error Value: White=0.33/Black=0.28 (precise)} 1/2-1/2

[Event "US Masters 2022"]
[Site "Charlotte"]
[Date "2022.11.26"]
[Round "5.14"]
[White "Hilby, Craig"]
[Black "Jacobson, Brandon"]
[Result "1/2-1/2"]
[ECO "B07"]
[WhiteElo "2411"]
[BlackElo "2551"]
[Annotator "TA"]
[PlyCount "49"]
[EventDate "2022.11.23"]
[EventType "swiss"]
[EventCountry "USA"]
[SourceTitle "playchess.com"]
[Source "ChessBase"]
[SourceQuality "1"]
[TimeControl "5400+30"]

{[%evp 14,49,0,0,37,-15,-18,-21,0,-10,16,0,10,0,0,0,9,15,23,12,21,20,40,20,33,20,27,9,25,10,27,-9,39,-3,-4,-5,-8,-8]} 1. d4 {[%emt 0:00:01]} Nf6 {[%emt 0:02:22]} 2. Nf3 {[%emt 0:00:13]} g6 {[%emt 0:00:29]} 3. Nbd2 {[%emt 0:00:12]} Bg7 {[%emt 0:01:03]} 4. e4 {[%emt 0:00:21]} d6 {[%emt 0:00:13]} 5. Bd3 {[%emt 0:00:37]} O-O {[%emt 0:00:17]} 6. O-O {[%emt 0:00:06]} c5 {[%emt 0:00:23]} 7. c3 {[%emt 0:01:11]} cxd4 {[%emt 0:00:27]} 8. cxd4 {[%emt 0:00:30]} Nc6 {[%emt 0:00:11] B07: Pirc Defence: Miscellaneous Systems.} 9. d5 {[%emt 0:13:23]} (9. Re1 $14) 9... Nb4 $11 {[%emt 0:00:15]} 10. Bb1 {[%emt 0:00:12]} a5 {[%emt 0:03:17] [#]} 11. Nb3 $146 {[%emt 0:05:59]} ({Predecessor:} 11. Re1 Nd7 12. Nb3 a4 13. Nbd4 Nc5 14. h3 Bd7 15. Bf4 a3 16. b3 {0-1 (45) Bacrot,E (2673)-Priasmoro,N (2502) Chess.com INT 2020}) 11... Bd7 {[%emt 0:26:49]} 12. Nbd4 {[%emt 0:03:12]} Na6 {[%emt 0:08:05]} 13. h3 {[%emt 0:02:24]} Nc5 {[%emt 0:01:22]} 14. Re1 {[%emt 0:01:05]} b5 {[%emt 0:05:43]} 15. Bg5 {[%emt 0:07:46]} Qb6 {[%emt 0:02:28]} 16. Qd2 {[%emt 0:04:44]} Rfe8 {[%emt 0:04:01]} 17. Bc2 {[%emt 0:02:49]} a4 {[%emt 0:04:05]} 18. Rac1 {[%emt 0:04:01]} e5 {[%emt 0:05:36]} 19. dxe6 {[%emt 0:00:21]} Nxe6 {[%emt 0:00:03]} 20. Nxe6 {[%emt 0:06:11]} Bxe6 {[%emt 0:04:09]} 21. Bb1 {[%emt 0:02:16]} Bc4 {[%emt 0:00:50]} 22. Qb4 {[%emt 0:05:23] [#] Strongly threatening Rxc4.} Nd7 {[%emt 0:07:51]} (22... d5 $11 {feels stronger.}) 23. Be3 {[%emt 0:02:14]} Qa5 {[%emt 0:01:39]} 24. Qxa5 {[%emt 0:02:15]} ({Much worse is} 24. Qxd6 Ne5 $15) 24... Rxa5 {[%emt 0:00:02]} 25. Bd4 {[%emt 0:00:21] Weighted Error Value: White=0.17 (very precise) /Black=0.14 (very precise)} 1/2-1/2

[Event "US Masters 2022"]
[Site "Charlotte"]
[Date "2022.11.26"]
[Round "5.15"]
[White "Mishra, Abhimanyu"]
[Black "Wang, Kevin"]
[Result "1/2-1/2"]
[ECO "E65"]
[WhiteElo "2549"]
[BlackElo "2407"]
[Annotator "TA"]
[PlyCount "93"]
[EventDate "2022.11.23"]
[EventType "swiss"]
[EventCountry "USA"]
[SourceTitle "playchess.com"]
[Source "ChessBase"]
[SourceQuality "1"]
[TimeControl "5400+30"]

{[%evp 18,93,12,12,14,11,24,15,16,10,18,8,2,8,16,7,25,6,24,11,11,6,18,0,39,4,0,0,0,0,0,0,0,0,0,0,0,0,0,0,0,0,0,0,0,0,0,0,2,1,3,0,0,0,0,0,0,0,0,0,0,0,0,-8,0,0,0,-5,-5,-6,-6,-6,-6,-6,-6,-6,-6,-6]} 1. d4 {[%emt 0:00:02]} Nf6 {[%emt 0:04:05]} 2. c4 {[%emt 0:00:08]} g6 {[%emt 0:00:15]} 3. g3 {[%emt 0:00:10]} Bg7 {[%emt 0:00:52]} 4. Bg2 {[%emt 0:00:26]} O-O {[%emt 0:00:52]} 5. Nc3 {[%emt 0:00:37]} d6 {[%emt 0:00:34]} 6. Nf3 {[%emt 0:00:14]} c5 {[%emt 0:00:58]} 7. O-O {[%emt 0:00:43]} Nc6 {[%emt 0:00:25]} 8. dxc5 {[%emt 0:00:47]} dxc5 {[%emt 0:00:20]} 9. Bf4 {[%emt 0:00:44]} Nh5 {[%emt 0:00:46]} 10. Be3 {[%emt 0:00:29]} b6 $1 {[%emt 0:00:39][%mdl 4] is recently more successful than 10...Nd4. E65: King's Indian: Fianchetto: 6...c5 7 0-0 without d5 by White.} 11. Qc1 {[%emt 0:02:18][%cal Of3e5]} Bb7 {[%emt 0:02:03]} 12. Bh6 {[%emt 0:05:03]} Qe8 {[%emt 0:03:59]} 13. Qe3 {[%emt 0:02:31]} (13. Rd1 {simplifies} f6 14. Bxg7 Nxg7 15. Nb5) 13... f6 {[%emt 0:03:19]} 14. Rad1 {[%emt 0:09:44]} Bxh6 {[%emt 0:04:55]} 15. Qxh6 {[%emt 0:00:03]} Ng7 {[%emt 0:00:25]} 16. b3 {[%emt 0:08:43]} (16. Nh4 {keeps more tension.} Qc8 17. Bd5+ e6 18. Be4) 16... Nf5 {[%emt 0:07:30]} (16... e6 {feels hotter.} 17. Nh4 Qe7 18. Be4 Ne5) 17. Qf4 {[%emt 0:00:38] [#]} Rd8 $146 {[%emt 0:10:00]} ({Predecessor:} 17... Rb8 18. Qc1 Rd8 19. Rxd8 Qxd8 20. Rd1 Qb8 21. g4 Nfd4 22. Nxd4 Nxd4 23. Qe3 Kf7 24. Qh3 Bxg2 25. Kxg2 Kg7 26. e3 Nc6 27. f4 Rd8 28. Qf3 {½-½ (28) Wisham,C (2185)-Neytush,E (2111) LSS email 2020}) 18. Rxd8 {[%emt 0:12:09]} (18. Qc7 $5 {[%cal Rc7b7]} Ba8 19. Rxd8 Qxd8 20. Nd5 $11) 18... Qxd8 {[%emt 0:01:25]} 19. Rd1 {[%emt 0:01:48]} Qa8 {[%emt 0:17:41]} 20. Ne1 {[%emt 0:10:47]} Rd8 {[%emt 0:07:31] Prevents Rd7.} (20... Ncd4 {is interesting.} 21. Bxb7 Qxb7 22. e3 Ne6) 21. Rxd8+ {[%emt 0:13:04]} (21. Bd5+ {is more complex.} Kg7 22. g4 e5 23. Qd2) 21... Qxd8 {[%emt 0:02:21] The position is equal.} 22. Nd3 {[%emt 0:02:09]} Qd7 {[%emt 0:04:05]} 23. Nd5 {[%emt 0:02:43]} Ncd4 {[%emt 0:04:31]} 24. Qb8+ {[%emt 0:04:11]} Bc8 {[%emt 0:02:44]} 25. e3 {[%emt 0:05:45]} Nc6 {[%emt 0:02:09]} 26. Qc7 {[%emt 0:02:21] [#] Threatens to win with g4.} Kf7 {[%emt 0:00:55]} 27. Kf1 {[%emt 0:03:59]} e6 {[%emt 0:02:16]} 28. Qxd7+ {[%emt 0:02:12]} Bxd7 {[%emt 0:00:04]} 29. Nc3 {[%emt 0:00:16]} Nd6 {[%emt 0:00:37]} 30. Ke2 {[%emt 0:01:30]} Ne7 {[%emt 0:02:26]} 31. f4 {[%emt 0:01:39][%cal Bf2f4,Bf4g5][%mdl 32]} Nc6 {[%emt 0:02:29]} 32. g4 {[%emt 0:01:14]} Ke7 {[%emt 0:01:19]} 33. g5 {[%emt 0:02:37]} fxg5 {[%emt 0:03:15]} 34. fxg5 {[%emt 0:00:26]} Nd8 {[%emt 0:02:59]} 35. Ne5 {[%emt 0:02:57]} N8f7 {[%emt 0:00:20]} 36. Nxf7 {[%emt 0:00:37]} Nxf7 $11 {[%emt 0:00:34][%mdl 4096] Endgame KBN-KBN} 37. h4 {[%emt 0:00:23]} h6 {[%emt 0:00:37]} 38. gxh6 {[%emt 0:02:01]} Nxh6 {[%emt 0:00:01]} 39. Be4 {[%emt 0:00:30]} Kf6 {[%emt 0:00:23]} 40. Nd1 {[%emt 0:01:01]} g5 {[%emt 0:00:45]} 41. hxg5+ {[%emt 0:00:12]} Kxg5 {[%emt 0:00:01]} 42. Nf2 {[%emt 0:00:29]} Nf7 {[%emt 0:00:31]} 43. Bd3 {[%emt 0:00:38]} Nd6 {[%emt 0:00:11]} 44. Ne4+ {[%emt 0:00:39]} Nxe4 {[%emt 0:00:05]} 45. Bxe4 {[%emt 0:00:04]} Kf6 {[%emt 0:00:20]} 46. Kd3 {[%emt 0:00:46]} Ke5 {[%emt 0:00:04]} 47. Bg6 {[%emt 0:00:33] A balanced but interesting game.   Weighted Error Value: White=0.04 (flawless) /Black=0.03 (flawless)} 1/2-1/2

[Event "US Masters 2022"]
[Site "Charlotte"]
[Date "2022.11.26"]
[Round "5.16"]
[White "Siddharth, Jagadeesh"]
[Black "Schitco, Ivan"]
[Result "1/2-1/2"]
[ECO "E41"]
[WhiteElo "2407"]
[BlackElo "2532"]
[Annotator "TA"]
[PlyCount "40"]
[EventDate "2022.11.23"]
[EventType "swiss"]
[EventCountry "USA"]
[SourceTitle "playchess.com"]
[Source "ChessBase"]
[SourceQuality "1"]
[TimeControl "5400+30"]

{[%evp 19,40,16,47,49,40,47,65,11,39,11,50,51,48,44,37,24,5,0,43,43,42,50,63]} 1. d4 {[%emt 0:00:04]} Nf6 {[%emt 0:02:07]} 2. c4 {[%emt 0:00:10]} e6 {[%emt 0:00:13]} 3. Nc3 {[%emt 0:00:10]} Bb4 {[%emt 0:00:43]} 4. e3 {[%emt 0:00:14]} Bxc3+ {[%emt 0:00:35]} 5. bxc3 {[%emt 0:00:12]} c5 {[%emt 0:00:02]} 6. Bd3 {[%emt 0:02:41]} d6 {[%emt 0:00:08]} 7. Ne2 {[%emt 0:01:01]} Nc6 {[%emt 0:00:07]} 8. f3 {[%emt 0:01:14]} e5 {[%emt 0:02:04]} 9. O-O {[%emt 0:02:59]} O-O {[%emt 0:00:41]} 10. e4 {[%emt 0:00:34]} h6 {[%emt 0:01:55][%cal Re5d4]} 11. Be3 {[%emt 0:02:06] E41: Nimzo-Indian: Rubinstein: 4...c5 5 Bd3, including Hübner Variation.} b6 {[%emt 0:00:07]} 12. d5 {[%emt 0:00:58]} Ne7 {[%emt 0:00:06][%cal Bc6e7,Be7g6,Bg6f4][%mdl 32] [#]} 13. g4 $146 {[%emt 0:13:24] White is more active.} ({Better is} 13. Ng3 $14) ({Predecessor:} 13. Ng3 g5 14. Qd2 Ng6 15. Nf5 Bxf5 16. exf5 Nf4 17. Bc2 Ne8 18. g3 Nh5 19. Kg2 {1-0 (44) Farago,I (2411)-Munkhgal,G (2445) Budapest 2017}) 13... Nh7 {[%emt 0:02:47]} 14. Qe1 {[%emt 0:20:14]} g5 {[%emt 0:04:37]} 15. h4 {[%emt 0:10:36]} Ng6 $1 {[%emt 0:00:27]} 16. hxg5 {[%emt 0:00:38]} hxg5 {[%emt 0:00:55]} 17. Ng3 {[%emt 0:05:10]} Nf4 {[%emt 0:03:04]} 18. Qd2 {[%emt 0:06:32]} Nf6 {[%emt 0:09:58]} 19. Kf2 {[%emt 0:02:14]} Kg7 {[%emt 0:00:50]} 20. Rh1 {[%emt 0:03:02]} Bd7 {[%emt 0:03:01] Weighted Error Value: White=0.11 (very precise) /Black=0.17 (very precise)} 1/2-1/2